[Event "Titled Tuesday Blitz November 22 Early 2022"]
[White "Aldokhin, Ivan"]
[Black "Wagner, Dennis"]
[WhiteFideId "24115720"]
[BlackFideId "24650684"]
[WhiteElo "2313"]
[BlackElo "2470"]
[Result "1-0"]
[Round "11"]
[TimeControl "180+1"]
[Date "2022.11.23"]
[WhiteClock "0:00:04"]
[BlackClock "0:00:21"]

1. e4 {[%clk 0:03:00]}  e5 {[%clk 0:03:00]} 2. Nf3 {[%clk 0:03:00]}  Nc6 {[%clk 0:03:00]} 3. Bb5 {[%clk 0:03:01]}  a6 {[%clk 0:03:00]} 4. Ba4 {[%clk 0:03:02]}  Nf6 {[%clk 0:03:00]} 5. O-O {[%clk 0:03:02]}  Be7 {[%clk 0:03:01]} 6. Re1 {[%clk 0:03:03]}  b5 {[%clk 0:03:01]} 7. Bb3 {[%clk 0:03:03]}  O-O {[%clk 0:03:02]} 8. d4 {[%clk 0:03:04]}  Nxd4 {[%clk 0:02:57]} 9. Nxd4 {[%clk 0:03:03]}  exd4 {[%clk 0:02:57]} 10. e5 {[%clk 0:03:04]}  Ne8 {[%clk 0:02:53]} 11. c3 {[%clk 0:02:55]}  c5 {[%clk 0:02:52]} 12. cxd4 {[%clk 0:02:53]}  c4 {[%clk 0:02:52]} 13. Bc2 {[%clk 0:02:53]}  d5 {[%clk 0:02:53]} 14. Nd2 {[%clk 0:02:41]}  Nc7 {[%clk 0:02:53]} 15. Nf1 {[%clk 0:02:38]}  f5 {[%clk 0:02:44]} 16. f4 {[%clk 0:02:09]}  a5 {[%clk 0:02:43]} 17. Be3 {[%clk 0:02:02]}  Ra6 {[%clk 0:02:40]} 18. Qf3 {[%clk 0:02:01]}  b4 {[%clk 0:02:37]} 19. b3 {[%clk 0:01:54]}  c3 {[%clk 0:02:33]} 20. Kh1 {[%clk 0:01:45]}  Rh6 {[%clk 0:02:28]} 21. Bf2 {[%clk 0:01:32]}  Be6 {[%clk 0:02:27]} 22. Bd3 {[%clk 0:01:11]}  Qd7 {[%clk 0:02:27]} 23. Qe2 {[%clk 0:01:11]}  Rb8 {[%clk 0:02:22]} 24. Ne3 {[%clk 0:01:06]}  Nb5 {[%clk 0:02:16]} 25. Nc2 {[%clk 0:01:06]}  Bh4 {[%clk 0:02:05]} 26. g3 {[%clk 0:01:06]}  Bd8 {[%clk 0:02:05]} 27. Be3 {[%clk 0:01:06]}  Rb7 {[%clk 0:01:55]} 28. Rf1 {[%clk 0:01:06]}  Bc7 {[%clk 0:01:55]} 29. g4 {[%clk 0:01:06]}  g6 {[%clk 0:01:47]} 30. g5 {[%clk 0:01:01]}  Rh3 {[%clk 0:01:43]} 31. Kg2 {[%clk 0:00:56]}  Rh4 {[%clk 0:01:36]} 32. h3 {[%clk 0:00:53]}  Bb6 {[%clk 0:01:35]} 33. Bxb5 {[%clk 0:00:48]}  Qc7 {[%clk 0:01:32]} 34. Kg3 {[%clk 0:00:44]}  Rh5 {[%clk 0:01:30]} 35. Bd3 {[%clk 0:00:42]}  h6 {[%clk 0:01:30]} 36. h4 {[%clk 0:00:42]}  hxg5 {[%clk 0:01:28]} 37. hxg5 {[%clk 0:00:42]}  Qh7 {[%clk 0:01:29]} 38. Qg2 {[%clk 0:00:38]}  Rh4 {[%clk 0:01:29]} 39. Be2 {[%clk 0:00:34]}  Qh8 {[%clk 0:01:27]} 40. Rh1 {[%clk 0:00:33]}  Rbh7 {[%clk 0:01:27]} 41. Rxh4 {[%clk 0:00:25]}  Rxh4 {[%clk 0:01:28]} 42. Bf3 {[%clk 0:00:24]}  Kf7 {[%clk 0:00:48]} 43. Rh1 {[%clk 0:00:22]}  Rxh1 {[%clk 0:00:49]} 44. Qxh1 {[%clk 0:00:22]}  Qxh1 {[%clk 0:00:49]} 45. Bxh1 {[%clk 0:00:21]}  Ke7 {[%clk 0:00:50]} 46. Bf3 {[%clk 0:00:18]}  Kd7 {[%clk 0:00:50]} 47. Be2 {[%clk 0:00:18]}  Kc6 {[%clk 0:00:50]} 48. Kf3 {[%clk 0:00:17]}  Bd8 {[%clk 0:00:50]} 49. Bc1 {[%clk 0:00:14]}  Be7 {[%clk 0:00:50]} 50. Ke3 {[%clk 0:00:15]}  Kb6 {[%clk 0:00:50]} 51. Ne1 {[%clk 0:00:12]}  Bf8 {[%clk 0:00:47]} 52. Kd3 {[%clk 0:00:11]}  Be7 {[%clk 0:00:48]} 53. Kc2 {[%clk 0:00:12]}  Bf7 {[%clk 0:00:48]} 54. Nd3 {[%clk 0:00:12]}  Be8 {[%clk 0:00:40]} 55. a3 {[%clk 0:00:09]}  Bb5 {[%clk 0:00:39]} 56. a4 {[%clk 0:00:07]}  Bxd3+ {[%clk 0:00:34]} 57. Bxd3 {[%clk 0:00:06]}  Kc6 {[%clk 0:00:34]} 58. Bb5+ {[%clk 0:00:05]}  Kc7 {[%clk 0:00:33]} 59. Be8 {[%clk 0:00:06]}  Bxg5 {[%clk 0:00:22]} 60. fxg5 {[%clk 0:00:06]}  Kd8 {[%clk 0:00:21]} 61. Bxg6 {[%clk 0:00:05]}  f4 {[%clk 0:00:22]} 62. Bxf4 {[%clk 0:00:05]}  Ke7 {[%clk 0:00:21]} 63. Bf5 {[%clk 0:00:06]}  Kf7 {[%clk 0:00:21]} 64. g6+ {[%clk 0:00:05]}  Kg7 {[%clk 0:00:22]} 65. Bg5 {[%clk 0:00:06]}  Kg8 {[%clk 0:00:23]} 66. Bf6 {[%clk 0:00:06]}  Kf8 {[%clk 0:00:23]} 67. e6 {[%clk 0:00:06]}  Ke8 {[%clk 0:00:24]} 68. Bg4 {[%clk 0:00:03]}  Kf8 {[%clk 0:00:23]} 69. g7+ {[%clk 0:00:03]}  Kg8 {[%clk 0:00:23]} 70. Bh5 {[%clk 0:00:04]}  Kh7 {[%clk 0:00:23]} 71. Bf7 {[%clk 0:00:04]}  Kh6 {[%clk 0:00:24]} 72. e7 {[%clk 0:00:03]}  Kh7 {[%clk 0:00:24]} 73. g8=Q+ {[%clk 0:00:04]}  Kh6 {[%clk 0:00:21]} 74. Qg6# {[%clk 0:00:04]} 1-0


[Site "https://www.chess.com"]

[Event "Titled Tuesday Blitz November 22 Early 2022"]
[White "Aradhya, Garg"]
[Black "Shuvalova, Polina"]
[WhiteFideId "25006746"]
[BlackFideId "24171760"]
[WhiteElo "2223"]
[BlackElo "2342"]
[Result "1/2-1/2"]
[Round "11"]
[TimeControl "180+1"]
[Date "2022.11.23"]
[WhiteClock "0:00:46"]
[BlackClock "0:00:06"]

1. d4 {[%clk 0:03:00]}  Nf6 {[%clk 0:02:59]} 2. c4 {[%clk 0:03:01]}  e6 {[%clk 0:02:59]} 3. Nc3 {[%clk 0:03:00]}  Bb4 {[%clk 0:02:59]} 4. e3 {[%clk 0:03:01]}  O-O {[%clk 0:02:59]} 5. Bd2 {[%clk 0:03:01]}  d5 {[%clk 0:02:59]} 6. Nf3 {[%clk 0:03:01]}  Nbd7 {[%clk 0:03:00]} 7. Qb3 {[%clk 0:02:59]}  a5 {[%clk 0:02:41]} 8. cxd5 {[%clk 0:02:58]}  Bxc3 {[%clk 0:02:41]} 9. bxc3 {[%clk 0:02:55]}  exd5 {[%clk 0:02:41]} 10. a4 {[%clk 0:02:52]}  Nb6 {[%clk 0:02:39]} 11. Bd3 {[%clk 0:02:46]}  Be6 {[%clk 0:02:32]} 12. Ng5 {[%clk 0:02:42]}  Bd7 {[%clk 0:02:29]} 13. Qc2 {[%clk 0:02:40]}  h6 {[%clk 0:02:26]} 14. Nh7 {[%clk 0:02:39]}  Nxh7 {[%clk 0:02:25]} 15. Bxh7+ {[%clk 0:02:39]}  Kh8 {[%clk 0:02:26]} 16. Bf5 {[%clk 0:02:38]}  Qc8 {[%clk 0:02:19]} 17. Bxd7 {[%clk 0:02:38]}  Qxd7 {[%clk 0:02:20]} 18. O-O {[%clk 0:02:37]}  f5 {[%clk 0:02:14]} 19. f3 {[%clk 0:02:34]}  Nc4 {[%clk 0:02:10]} 20. Bc1 {[%clk 0:02:28]}  Rae8 {[%clk 0:02:09]} 21. Qd3 {[%clk 0:02:23]}  Qc6 {[%clk 0:02:05]} 22. Ra2 {[%clk 0:02:18]}  Re6 {[%clk 0:02:02]} 23. Re1 {[%clk 0:02:18]}  b6 {[%clk 0:01:58]} 24. Qc2 {[%clk 0:02:11]}  g6 {[%clk 0:01:54]} 25. Qb3 {[%clk 0:02:10]}  Rfe8 {[%clk 0:01:51]} 26. Rae2 {[%clk 0:02:10]}  Kh7 {[%clk 0:01:52]} 27. Qc2 {[%clk 0:02:04]}  R8e7 {[%clk 0:01:45]} 28. h4 {[%clk 0:02:04]}  h5 {[%clk 0:01:36]} 29. e4 {[%clk 0:02:03]}  fxe4 {[%clk 0:01:34]} 30. fxe4 {[%clk 0:02:03]}  Rxe4 {[%clk 0:01:33]} 31. Rxe4 {[%clk 0:02:03]}  Rxe4 {[%clk 0:01:33]} 32. Rf1 {[%clk 0:02:03]}  Qe6 {[%clk 0:01:26]} 33. Qf2 {[%clk 0:02:02]}  Qe8 {[%clk 0:00:51]} 34. Qf6 {[%clk 0:01:41]}  Nd6 {[%clk 0:00:50]} 35. Bf4 {[%clk 0:01:34]}  Re6 {[%clk 0:00:39]} 36. Qg5 {[%clk 0:01:33]}  Ne4 {[%clk 0:00:36]} 37. Qxd5 {[%clk 0:01:30]}  Nxc3 {[%clk 0:00:36]} 38. Qc4 {[%clk 0:01:21]}  Ne2+ {[%clk 0:00:34]} 39. Kh2 {[%clk 0:01:20]}  Nxf4 {[%clk 0:00:31]} 40. Qxc7+ {[%clk 0:01:19]}  Qe7 {[%clk 0:00:26]} 41. Qxf4 {[%clk 0:01:18]}  Re4 {[%clk 0:00:24]} 42. Qf7+ {[%clk 0:01:12]}  Qxf7 {[%clk 0:00:24]} 43. Rxf7+ {[%clk 0:01:12]}  Kg8 {[%clk 0:00:25]} 44. Rf6 {[%clk 0:01:12]}  Kg7 {[%clk 0:00:21]} 45. Rd6 {[%clk 0:01:02]}  Rxh4+ {[%clk 0:00:21]} 46. Kg3 {[%clk 0:01:02]}  Rg4+ {[%clk 0:00:18]} 47. Kf3 {[%clk 0:01:02]}  Kf7 {[%clk 0:00:19]} 48. g3 {[%clk 0:01:00]}  Ke7 {[%clk 0:00:11]} 49. Rxb6 {[%clk 0:00:58]}  Rxd4 {[%clk 0:00:11]} 50. Rxg6 {[%clk 0:00:58]}  Rxa4 {[%clk 0:00:09]} 51. Rg5 {[%clk 0:00:58]}  Ra1 {[%clk 0:00:08]} 52. Rxh5 {[%clk 0:00:58]}  a4 {[%clk 0:00:05]} 53. Ra5 {[%clk 0:00:58]}  a3 {[%clk 0:00:05]} 54. Kg4 {[%clk 0:00:51]}  a2 {[%clk 0:00:03]} 55. Ra6 {[%clk 0:00:51]}  Kf7 {[%clk 0:00:03]} 56. Kg5 {[%clk 0:00:50]}  Rg1 {[%clk 0:00:03]} 57. Ra7+ {[%clk 0:00:49]}  Ke6 {[%clk 0:00:02]} 58. Ra6+ {[%clk 0:00:48]}  Ke5 {[%clk 0:00:02]} 59. Ra5+ {[%clk 0:00:48]}  Ke6 {[%clk 0:00:03]} 60. Rxa2 {[%clk 0:00:48]}  Rxg3+ {[%clk 0:00:03]} 61. Kf4 {[%clk 0:00:48]}  Rd3 {[%clk 0:00:03]} 62. Re2+ {[%clk 0:00:48]}  Kd5 {[%clk 0:00:03]} 63. Re5+ {[%clk 0:00:48]}  Kd4 {[%clk 0:00:03]} 64. Re8 {[%clk 0:00:48]}  Kc3 {[%clk 0:00:03]} 65. Rc8+ {[%clk 0:00:48]}  Kd2 {[%clk 0:00:03]} 66. Ke4 {[%clk 0:00:48]}  Re3+ {[%clk 0:00:04]} 67. Kd4 {[%clk 0:00:49]}  Rd3+ {[%clk 0:00:04]} 68. Ke4 {[%clk 0:00:49]}  Re3+ {[%clk 0:00:05]} 69. Kf4 {[%clk 0:00:49]}  Rd3 {[%clk 0:00:06]} 70. Rh8 {[%clk 0:00:49]}  Kc3 {[%clk 0:00:06]} 71. Ke4 {[%clk 0:00:46]}  Rd4+ {[%clk 0:00:06]} 72. Ke5 {[%clk 0:00:46]}  Rd3 {[%clk 0:00:06]} 73. Rc8+ {[%clk 0:00:46]}  Kd2 {[%clk 0:00:06]} 74. Ke4 {[%clk 0:00:46]} 1/2-1/2


[Site "https://www.chess.com"]

[Event "Titled Tuesday Blitz November 22 Early 2022"]
[White "Artemenko, Oleg"]
[Black "Melikyan, Gnel"]
[WhiteFideId "14201798"]
[BlackFideId "54109990"]
[WhiteElo "2287"]
[BlackElo "2138"]
[Result "0-1"]
[Round "11"]
[TimeControl "180+1"]
[Date "2022.11.23"]
[WhiteClock "0:00:08"]
[BlackClock "0:00:09"]

1. d4 {[%clk 0:03:00]}  d6 {[%clk 0:02:56]} 2. Nc3 {[%clk 0:03:01]}  Nf6 {[%clk 0:02:57]} 3. e4 {[%clk 0:03:01]}  e5 {[%clk 0:02:57]} 4. Nf3 {[%clk 0:02:59]}  Nc6 {[%clk 0:02:57]} 5. dxe5 {[%clk 0:02:55]}  Nxe5 {[%clk 0:02:56]} 6. Nxe5 {[%clk 0:02:52]}  dxe5 {[%clk 0:02:56]} 7. Qxd8+ {[%clk 0:02:52]}  Kxd8 {[%clk 0:02:56]} 8. Bg5 {[%clk 0:02:53]}  Be6 {[%clk 0:02:56]} 9. O-O-O+ {[%clk 0:02:53]}  Bd6 {[%clk 0:02:57]} 10. Nb5 {[%clk 0:02:51]}  Ke7 {[%clk 0:02:57]} 11. Nxd6 {[%clk 0:02:51]}  cxd6 {[%clk 0:02:57]} 12. f3 {[%clk 0:02:52]}  h6 {[%clk 0:02:54]} 13. Bh4 {[%clk 0:02:51]}  b6 {[%clk 0:02:51]} 14. h3 {[%clk 0:02:51]}  Rhd8 {[%clk 0:02:44]} 15. b3 {[%clk 0:02:46]}  g5 {[%clk 0:02:43]} 16. Bg3 {[%clk 0:02:44]}  a5 {[%clk 0:02:35]} 17. Kb2 {[%clk 0:02:41]}  a4 {[%clk 0:02:35]} 18. Bf2 {[%clk 0:02:41]}  axb3 {[%clk 0:02:34]} 19. axb3 {[%clk 0:02:38]}  Nd7 {[%clk 0:02:34]} 20. Bb5 {[%clk 0:02:36]}  Nc5 {[%clk 0:02:33]} 21. Ra1 {[%clk 0:02:37]}  f5 {[%clk 0:02:29]} 22. b4 {[%clk 0:02:26]}  Nd7 {[%clk 0:02:20]} 23. exf5 {[%clk 0:02:24]}  Bxf5 {[%clk 0:02:19]} 24. c4 {[%clk 0:02:24]}  Be6 {[%clk 0:02:13]} 25. Rhd1 {[%clk 0:02:20]}  Rdc8 {[%clk 0:02:11]} 26. Rxa8 {[%clk 0:02:16]}  Rxa8 {[%clk 0:02:10]} 27. Kb3 {[%clk 0:02:16]}  h5 {[%clk 0:02:01]} 28. Be3 {[%clk 0:02:14]}  Rg8 {[%clk 0:01:58]} 29. g4 {[%clk 0:02:13]}  hxg4 {[%clk 0:01:57]} 30. hxg4 {[%clk 0:02:13]}  e4 {[%clk 0:01:55]} 31. fxe4 {[%clk 0:02:10]}  Ne5 {[%clk 0:01:51]} 32. Kc3 {[%clk 0:01:51]}  Nxg4 {[%clk 0:01:39]} 33. Bxb6 {[%clk 0:01:49]}  Nf6 {[%clk 0:01:35]} 34. c5 {[%clk 0:01:45]}  Nxe4+ {[%clk 0:01:33]} 35. Kd4 {[%clk 0:01:44]}  Nf6 {[%clk 0:00:57]} 36. cxd6+ {[%clk 0:01:41]}  Kxd6 {[%clk 0:00:58]} 37. Bc5+ {[%clk 0:01:41]}  Kc7 {[%clk 0:00:58]} 38. Ra1 {[%clk 0:01:37]}  Nd7 {[%clk 0:00:40]} 39. Ra7+ {[%clk 0:01:28]}  Kb8 {[%clk 0:00:37]} 40. Ra6 {[%clk 0:01:19]}  Nxc5 {[%clk 0:00:35]} 41. bxc5 {[%clk 0:01:18]}  Bc8 {[%clk 0:00:34]} 42. Rb6+ {[%clk 0:01:18]}  Ka7 {[%clk 0:00:34]} 43. Bf1 {[%clk 0:01:17]}  g4 {[%clk 0:00:32]} 44. Rb2 {[%clk 0:01:17]}  g3 {[%clk 0:00:30]} 45. c6 {[%clk 0:01:14]}  Rd8+ {[%clk 0:00:23]} 46. Kc5 {[%clk 0:01:12]}  Rd1 {[%clk 0:00:20]} 47. Bc4 {[%clk 0:00:59]}  Rc1 {[%clk 0:00:18]} 48. Kd5 {[%clk 0:00:49]}  Bh3 {[%clk 0:00:14]} 49. Rb7+ {[%clk 0:00:32]}  Ka8 {[%clk 0:00:14]} 50. Rg7 {[%clk 0:00:09]}  g2 {[%clk 0:00:11]} 51. Ba6 {[%clk 0:00:06]}  g1=Q {[%clk 0:00:07]} 52. Rxg1 {[%clk 0:00:06]}  Rxg1 {[%clk 0:00:08]} 53. c7 {[%clk 0:00:07]}  Rc1 {[%clk 0:00:06]} 54. Kd6 {[%clk 0:00:07]}  Ka7 {[%clk 0:00:06]} 55. Bb5 {[%clk 0:00:06]}  Kb6 {[%clk 0:00:06]} 56. Be2 {[%clk 0:00:05]}  Rxc7 {[%clk 0:00:06]} 57. Kd5 {[%clk 0:00:06]}  Rc5+ {[%clk 0:00:06]} 58. Kd4 {[%clk 0:00:06]}  Be6 {[%clk 0:00:07]} 59. Ke3 {[%clk 0:00:07]}  Re5+ {[%clk 0:00:07]} 60. Kf2 {[%clk 0:00:06]}  Kc5 {[%clk 0:00:08]} 61. Bf3 {[%clk 0:00:06]}  Kd4 {[%clk 0:00:08]} 62. Ba8 {[%clk 0:00:07]}  Bd5 {[%clk 0:00:09]} 63. Bxd5 {[%clk 0:00:06]}  Rxd5 {[%clk 0:00:09]} 64. Kf3 {[%clk 0:00:07]}  Rf5+ {[%clk 0:00:10]} 65. Kg3 {[%clk 0:00:07]}  Ke4 {[%clk 0:00:09]} 66. Kg4 {[%clk 0:00:08]}  Re5 {[%clk 0:00:09]} 67. Kh3 {[%clk 0:00:08]}  Kf3 {[%clk 0:00:09]} 68. Kh2 {[%clk 0:00:08]}  Re1 {[%clk 0:00:09]} 0-1


[Site "https://www.chess.com"]

[Event "Titled Tuesday Blitz November 22 Early 2022"]
[White "Boruchovsky, Avital"]
[Black "Sarana, Alexey"]
[WhiteFideId "2800055"]
[BlackFideId "24133795"]
[WhiteElo "2458"]
[BlackElo "2708"]
[Result "0-1"]
[Round "11"]
[TimeControl "180+1"]
[Date "2022.11.22"]
[WhiteClock "0:00:02"]
[BlackClock "0:00:07"]

1. Nf3 {[%clk 0:02:53]}  d5 {[%clk 0:02:57]} 2. g3 {[%clk 0:02:53]}  g6 {[%clk 0:02:57]} 3. Bg2 {[%clk 0:02:53]}  Bg7 {[%clk 0:02:57]} 4. d4 {[%clk 0:02:54]}  c6 {[%clk 0:02:57]} 5. O-O {[%clk 0:02:54]}  Nf6 {[%clk 0:02:58]} 6. b3 {[%clk 0:02:53]}  O-O {[%clk 0:02:58]} 7. c4 {[%clk 0:02:50]}  Bf5 {[%clk 0:02:58]} 8. Nc3 {[%clk 0:02:48]}  Ne4 {[%clk 0:02:58]} 9. Bb2 {[%clk 0:02:47]}  Nd7 {[%clk 0:02:55]} 10. cxd5 {[%clk 0:02:46]}  Nxc3 {[%clk 0:02:56]} 11. Bxc3 {[%clk 0:02:47]}  cxd5 {[%clk 0:02:56]} 12. Ne5 {[%clk 0:02:42]}  Rc8 {[%clk 0:02:53]} 13. Rc1 {[%clk 0:02:17]}  e6 {[%clk 0:02:50]} 14. Qd2 {[%clk 0:02:16]}  h5 {[%clk 0:02:48]} 15. Ba5 {[%clk 0:02:11]}  b6 {[%clk 0:02:45]} 16. Bb4 {[%clk 0:02:09]}  Nxe5 {[%clk 0:02:17]} 17. Bxf8 {[%clk 0:02:07]}  Kxf8 {[%clk 0:02:15]} 18. dxe5 {[%clk 0:02:04]}  Bxe5 {[%clk 0:02:16]} 19. Rxc8 {[%clk 0:01:58]}  Qxc8 {[%clk 0:02:16]} 20. Rc1 {[%clk 0:01:59]}  Qb8 {[%clk 0:02:10]} 21. e4 {[%clk 0:01:55]}  dxe4 {[%clk 0:02:10]} 22. Bxe4 {[%clk 0:01:41]}  Bxe4 {[%clk 0:01:52]} 23. Qb4+ {[%clk 0:01:41]}  Qd6 {[%clk 0:01:52]} 24. Qxe4 {[%clk 0:01:42]}  Kg7 {[%clk 0:01:52]} 25. Kg2 {[%clk 0:01:40]}  Bd4 {[%clk 0:01:50]} 26. Rc6 {[%clk 0:01:37]}  Qd7 {[%clk 0:01:48]} 27. b4 {[%clk 0:01:36]}  e5 {[%clk 0:01:40]} 28. b5 {[%clk 0:01:36]}  Qe7 {[%clk 0:01:03]} 29. Qd5 {[%clk 0:01:29]}  Qg5 {[%clk 0:01:03]} 30. Rc7 {[%clk 0:01:23]}  Qf5 {[%clk 0:01:03]} 31. Qf3 {[%clk 0:01:23]}  Qe6 {[%clk 0:01:04]} 32. Rc6 {[%clk 0:01:13]}  e4 {[%clk 0:00:53]} 33. Qb3 {[%clk 0:01:13]}  Qf5 {[%clk 0:00:52]} 34. Rc2 {[%clk 0:01:06]}  h4 {[%clk 0:00:49]} 35. gxh4 {[%clk 0:01:05]}  e3 {[%clk 0:00:49]} 36. f3 {[%clk 0:00:53]}  Qf4 {[%clk 0:00:39]} 37. Qd5 {[%clk 0:00:42]}  Qxh4 {[%clk 0:00:29]} 38. Qe4 {[%clk 0:00:41]}  Qg5+ {[%clk 0:00:28]} 39. Kf1 {[%clk 0:00:37]}  Bc5 {[%clk 0:00:28]} 40. h4 {[%clk 0:00:16]}  Qf6 {[%clk 0:00:27]} 41. Kg2 {[%clk 0:00:15]}  Qa1 {[%clk 0:00:26]} 42. f4 {[%clk 0:00:12]}  Qd1 {[%clk 0:00:25]} 43. Qe5+ {[%clk 0:00:07]}  Kh7 {[%clk 0:00:24]} 44. Qe4 {[%clk 0:00:07]}  Qg4+ {[%clk 0:00:22]} 45. Kf1 {[%clk 0:00:05]}  Qd1+ {[%clk 0:00:11]} 46. Kg2 {[%clk 0:00:05]}  Qg4+ {[%clk 0:00:11]} 47. Kf1 {[%clk 0:00:06]}  f5 {[%clk 0:00:12]} 48. Qb7+ {[%clk 0:00:05]}  Kh6 {[%clk 0:00:12]} 49. Qd5 {[%clk 0:00:04]}  e2+ {[%clk 0:00:11]} 50. Ke1 {[%clk 0:00:04]}  Bb4+ {[%clk 0:00:11]} 51. Rd2 {[%clk 0:00:02]}  Qxf4 {[%clk 0:00:07]} 52. Kxe2 {[%clk 0:00:02]}  Qxd2+ {[%clk 0:00:07]} 0-1


[Site "https://www.chess.com"]

[Event "Titled Tuesday Blitz November 22 Early 2022"]
[White "Bristy, Mukherjee"]
[Black "Odinaev, Timur"]
[WhiteFideId "25077325"]
[BlackFideId "4163770"]
[WhiteElo "1715"]
[BlackElo "2306"]
[Result "1-0"]
[Round "11"]
[TimeControl "180+1"]
[Date "2022.11.23"]
[WhiteClock "0:00:14"]
[BlackClock "0:00:16"]

1. d4 {[%clk 0:02:57]}  Nf6 {[%clk 0:02:59]} 2. Bg5 {[%clk 0:02:56]}  Ne4 {[%clk 0:02:58]} 3. h4 {[%clk 0:02:55]}  c5 {[%clk 0:02:57]} 4. Nd2 {[%clk 0:02:52]}  Nxg5 {[%clk 0:02:54]} 5. hxg5 {[%clk 0:02:51]}  cxd4 {[%clk 0:02:55]} 6. Ngf3 {[%clk 0:02:51]}  Nc6 {[%clk 0:02:54]} 7. Nb3 {[%clk 0:02:51]}  e5 {[%clk 0:02:44]} 8. c3 {[%clk 0:02:51]}  dxc3 {[%clk 0:02:43]} 9. bxc3 {[%clk 0:02:52]}  a5 {[%clk 0:02:36]} 10. e4 {[%clk 0:02:47]}  a4 {[%clk 0:02:35]} 11. Nc1 {[%clk 0:02:46]}  Qa5 {[%clk 0:02:26]} 12. Qd2 {[%clk 0:02:45]}  b5 {[%clk 0:02:13]} 13. Nd3 {[%clk 0:02:38]}  b4 {[%clk 0:02:13]} 14. cxb4 {[%clk 0:02:27]}  Nxb4 {[%clk 0:02:13]} 15. Kd1 {[%clk 0:01:59]}  Nxd3 {[%clk 0:01:58]} 16. Bxd3 {[%clk 0:01:55]}  Bb4 {[%clk 0:01:51]} 17. Qc2 {[%clk 0:01:48]}  d6 {[%clk 0:01:45]} 18. Ke2 {[%clk 0:01:31]}  O-O {[%clk 0:01:43]} 19. g6 {[%clk 0:01:13]}  Ba6 {[%clk 0:01:11]} 20. Rxh7 {[%clk 0:00:54]}  fxg6 {[%clk 0:01:10]} 21. Rah1 {[%clk 0:00:49]}  Bxd3+ {[%clk 0:00:59]} 22. Qxd3 {[%clk 0:00:48]}  Qa6 {[%clk 0:00:59]} 23. Qxa6 {[%clk 0:00:41]}  Rxa6 {[%clk 0:00:58]} 24. Ng5 {[%clk 0:00:41]}  Rxf2+ {[%clk 0:00:47]} 25. Kxf2 {[%clk 0:00:40]}  Kf8 {[%clk 0:00:47]} 26. Ke2 {[%clk 0:00:29]}  Rc6 {[%clk 0:00:39]} 27. Rf1+ {[%clk 0:00:29]}  Ke8 {[%clk 0:00:36]} 28. Rxg7 {[%clk 0:00:24]}  Rc2+ {[%clk 0:00:32]} 29. Kf3 {[%clk 0:00:21]}  Bd2 {[%clk 0:00:32]} 30. Ne6 {[%clk 0:00:20]}  Bh6 {[%clk 0:00:28]} 31. Rh7 {[%clk 0:00:19]}  Bc1 {[%clk 0:00:20]} 32. Kg3 {[%clk 0:00:16]}  Rc3+ {[%clk 0:00:18]} 33. Kh2 {[%clk 0:00:15]}  Bf4+ {[%clk 0:00:18]} 34. Nxf4 {[%clk 0:00:14]}  exf4 {[%clk 0:00:19]} 35. Rxf4 {[%clk 0:00:15]}  Re3 {[%clk 0:00:17]} 36. Rf6 {[%clk 0:00:14]}  Rxe4 {[%clk 0:00:16]} 37. Rxg6 {[%clk 0:00:14]}  Kf8 {[%clk 0:00:15]} 38. Rxd6 {[%clk 0:00:15]}  Kg8 {[%clk 0:00:16]} 39. Ra7 {[%clk 0:00:14]} 1-0


[Site "https://www.chess.com"]

[Event "Titled Tuesday Blitz November 22 Early 2022"]
[White "Caruana, Fabiano"]
[Black "Salinas Herrera, Pablo"]
[WhiteFideId "2020009"]
[BlackFideId "3407128"]
[WhiteElo "2847"]
[BlackElo "2557"]
[Result "1-0"]
[Round "11"]
[TimeControl "180+1"]
[Date "2022.11.22"]
[WhiteClock "0:02:05"]
[BlackClock "0:00:44"]

1. e4 {[%clk 0:03:00]}  c5 {[%clk 0:02:54]} 2. c3 {[%clk 0:02:59]}  e6 {[%clk 0:02:54]} 3. d4 {[%clk 0:02:58]}  d5 {[%clk 0:02:54]} 4. e5 {[%clk 0:02:59]}  Nc6 {[%clk 0:02:53]} 5. Nf3 {[%clk 0:02:59]}  Qb6 {[%clk 0:02:53]} 6. a3 {[%clk 0:02:58]}  Nh6 {[%clk 0:02:54]} 7. b4 {[%clk 0:02:57]}  cxd4 {[%clk 0:02:54]} 8. cxd4 {[%clk 0:02:58]}  Nf5 {[%clk 0:02:53]} 9. Be3 {[%clk 0:02:58]}  f6 {[%clk 0:02:52]} 10. exf6 {[%clk 0:02:57]}  gxf6 {[%clk 0:02:51]} 11. Bd3 {[%clk 0:02:57]}  Nxe3 {[%clk 0:02:52]} 12. fxe3 {[%clk 0:02:58]}  Bd7 {[%clk 0:02:40]} 13. O-O {[%clk 0:02:57]}  Bh6 {[%clk 0:02:41]} 14. Qe2 {[%clk 0:02:56]}  O-O-O {[%clk 0:02:38]} 15. Nc3 {[%clk 0:02:55]}  Ne7 {[%clk 0:02:39]} 16. Kh1 {[%clk 0:02:52]}  Kb8 {[%clk 0:02:39]} 17. Nd2 {[%clk 0:02:50]}  f5 {[%clk 0:02:38]} 18. Nb3 {[%clk 0:02:50]}  Rhg8 {[%clk 0:02:32]} 19. Nc5 {[%clk 0:02:50]}  Bc8 {[%clk 0:02:32]} 20. a4 {[%clk 0:02:47]}  Rdf8 {[%clk 0:02:06]} 21. a5 {[%clk 0:02:46]}  Qd8 {[%clk 0:02:04]} 22. b5 {[%clk 0:02:42]}  Rg7 {[%clk 0:01:43]} 23. b6 {[%clk 0:02:42]}  a6 {[%clk 0:01:43]} 24. Bxa6 {[%clk 0:02:32]}  Nc6 {[%clk 0:01:34]} 25. Bxb7 {[%clk 0:02:29]}  Bxb7 {[%clk 0:01:10]} 26. Nxe6 {[%clk 0:02:24]}  Qd6 {[%clk 0:01:02]} 27. Nxg7 {[%clk 0:02:24]}  Bxg7 {[%clk 0:01:02]} 28. a6 {[%clk 0:02:24]}  Bc8 {[%clk 0:01:01]} 29. b7 {[%clk 0:02:21]}  Bd7 {[%clk 0:00:58]} 30. Nb5 {[%clk 0:02:14]}  Qe7 {[%clk 0:00:53]} 31. Rfb1 {[%clk 0:02:10]}  Na7 {[%clk 0:00:51]} 32. Nxa7 {[%clk 0:02:09]}  Kxa7 {[%clk 0:00:52]} 33. b8=Q+ {[%clk 0:02:07]}  Rxb8 {[%clk 0:00:52]} 34. Rxb8 {[%clk 0:02:07]}  Kxb8 {[%clk 0:00:52]} 35. Qb2+ {[%clk 0:02:07]}  Kc7 {[%clk 0:00:45]} 36. Qb7+ {[%clk 0:02:06]}  Kd8 {[%clk 0:00:44]} 37. a7 {[%clk 0:02:05]} 1-0


[Site "https://www.chess.com"]